bitfinex-derivatives/quotes_SOLF0:USTF0_20250823
["timestamp","ask_amount","ask_price","bid_price","bid_amount"]
[1755914999536,0.03398443,197.93,197.9,2.74]
[1755914999743,0.03398443,197.93,197.91,2.74]
[1755915000236,30.3105,198.02,197.91,2.74]
[1755915000237,2.77,198.05,197.93,2.74]
[1755915000445,2.77,198.05,197.95,2.74]
[1755915001337,2.77,198.05,197.95,7.7933]
[1755915001540,2.77,198.05,197.98,0.03290018]
[1755915004440,29.78887285,198.14,197.99,2.75]
[1755915004441,2.81,198.09,197.99,2.75]
[1755915005243,2.81,198.09,198.02,0.03194119]
[1755915005547,2.81,198.09,198.02,2.78194119]
[1755915005944,2.81,198.13,198.02,2.78194119]
[1755915006146,2.81,198.13,198.06,7.8004]
[1755915006543,2.81,198.16,198.07,5.0502]
[1755915006740,2.81,198.16,198.08,0.0340528]
[1755915007141,2.81,198.16,198.09,7.7998]
[1755915009241,2.81,198.19,198.1,2.75]
[1755915009845,7.8575,198.19,198.1,2.75]
[1755915010149,2.81,198.2,198.13,0.03796182]
[1755915011049,2.81,198.2,198.02,4.54577285]
[1755915011050,2.81,198.14,198.03,127.24]
[1755915012145,5.0491,198.13,198.04,5.0511]
[1755915012545,5.0491,198.13,198.04,7.8011]
[1755915013137,5.0491,198.13,198.04,2.75]
[1755915013343,7.8593,198.12,198.04,2.75]
[1755915014449,2.81,198.12,198.04,2.75]
[1755915015452,2.81,198.12,198.04,7.8009]
[1755915015653,2.81,198.12,198.04,2.75]
[1755915016954,2.81,198.12,198.01,127.28]
[1755915016955,2.81,198.12,198.01,2.75]
[1755915017146,2.81,198.08,198.01,2.75]
[1755915018149,2.81,198.08,197.97,342.45]
[1755915018955,5.0506,198.07,197.97,342.45]
[1755915019454,5.0506,198.07,197.97,2.75]
[1755915019659,2.81,198.06,197.97,2.75]
[1755915020349,2.81,198.06,197.98,5.0525]
[1755915020558,2.81,198.06,197.99,7.3429849]
[1755915020760,2.81,198.06,197.99,2.75]
[1755915021149,2.81,198.1,198.01,2.75]
[1755915022557,2.81,198.1,197.97,2.75]
[1755915022761,2.81,198.1,197.99,2.75]
[1755915023056,2.81,198.1,198.01,2.75]
[1755915023556,2.81,198.1,198.02,5.0514]
[1755915023853,2.81,198.1,198.01,2.75]
[1755915026547,28.05036276,198.14,198.01,2.75]
[1755915026754,2.81,198.1,197.97,2.75]
[1755915026949,2.81,198.1,197.98,4.60144409]
[1755915027148,2.81,198.1,197.97,2.75]
[1755915027352,2.81,198.1,197.98,4.60256339]
[1755915027558,5.0506,198.07,197.97,7.8027]
[1755915027758,5.0506,198.07,197.98,7.35256339]
[1755915027957,5.0506,198.07,197.98,2.75]
[1755915028156,5.0499,198.09,197.98,7.8025]
[1755915028356,5.0499,198.09,197.99,2.75]
[1755915029961,2.81,198.08,198.0,4.60411041]
[1755915030160,7.8603,198.08,197.99,2.75]
[1755915030361,7.8603,198.08,198.0,4.60503932]
[1755915030558,7.8603,198.08,197.99,2.75]
[1755915030759,7.8603,198.08,198.0,4.60525755]
[1755915030959,7.8603,198.08,197.99,2.75]
[1755915031161,7.8603,198.08,198.0,4.60525755]
[1755915031359,7.8603,198.08,197.99,2.75]
[1755915031559,7.8603,198.08,198.0,4.60590384]
[1755915031759,7.8603,198.08,197.99,2.75]
[1755915031961,7.8603,198.08,198.0,4.60606449]
[1755915032163,7.8603,198.08,197.99,2.75]
[1755915032359,7.8603,198.08,198.0,4.60772418]
[1755915032560,7.8603,198.08,197.99,2.75]
[1755915032759,7.8603,198.08,198.0,4.607646]
[1755915032958,2.81,198.12,198.01,4.60703778]
[1755915033268,2.81,198.12,198.03,2.65]
[1755915033467,2.71,198.13,198.0,2.65]
[1755915034469,7.7603,198.08,198.0,2.65]
[1755915035360,5.0506,198.07,198.0,2.65]
[1755915036365,5.0513,198.04,197.93,193.79190691]
[1755915036563,2.71,198.07,197.95,2.65]
[1755915036963,2.71,198.03,197.95,2.65]
[1755915037361,2.71,198.03,197.84,25.2803]
[1755915037362,2.71,198.03,197.91,129.41]
[1755915037560,2.80686276,198.05,197.91,129.41]
[1755915037561,2.71,198.0,197.91,129.41]
[1755915038176,7.7622,198.0,197.91,129.41]
[1755915038773,2.71,198.0,197.92,2.65]
[1755915039166,2.71,198.05,197.93,4.65372326]
[1755915039475,2.71,198.05,197.94,7.30434571]
[1755915039678,5.0512,198.04,197.94,2.65]
[1755915040176,5.0512,198.04,197.95,4.65417288]
[1755915040375,5.0512,198.04,197.96,4.65601521]
[1755915040577,5.0512,198.04,197.95,5.0532]
[1755915040876,5.0512,198.04,197.96,4.65601521]
[1755915041075,5.0512,198.04,197.95,5.0532]
[1755915041270,5.0512,198.04,197.96,4.65608501]
[1755915041474,5.0512,198.04,197.95,5.0532]
[1755915041674,5.0512,198.04,197.96,4.65826707]
[1755915041875,5.0512,198.04,197.95,5.0532]
[1755915042075,5.0512,198.04,197.96,4.65702248]
[1755915042270,5.0512,198.04,197.97,4.65948871]
[1755915042572,2.71,198.05,197.98,7.30834581]
[1755915042771,2.71,198.05,197.99,4.65834581]
[1755915043071,2.71,198.05,197.98,2.65]
[1755915043265,2.71,198.05,197.99,4.65748119]
[1755915043476,2.71,198.04,198.0,4.65748119]
[1755915043675,2.71,198.04,197.98,2.65]
[1755915043974,2.71,198.04,197.99,7.30968675]
[1755915044175,2.71,198.04,198.0,4.65968675]
[1755915044376,2.71,198.04,197.99,2.65]
[1755915044573,5.0505,198.07,198.0,4.66228743]
[1755915044877,5.0505,198.07,197.99,2.65]
[1755915045174,5.0505,198.07,198.0,4.66227582]
[1755915045366,5.0505,198.07,197.99,7.7023]
[1755915045566,2.71,198.08,198.01,2.65]
[1755915046176,11.12373431,198.12,198.02,4.66121508]
[1755915046367,2.71,198.12,198.01,2.65]
[1755915046576,2.71,198.12,198.02,4.6605792]
[1755915046771,2.71,198.12,198.03,4.6605792]
[1755915046972,2.71,198.12,198.01,2.65]
[1755915047173,2.71,198.12,198.03,2.65]
[1755915047377,2.71,198.12,198.04,4.6601781]
[1755915047576,5.0495,198.11,198.03,7.7012]
[1755915047775,5.0495,198.11,198.04,4.66022791]
[1755915047973,2.71,198.12,198.03,2.65]
[1755915048169,2.71,198.12,198.04,4.65964903]
[1755915048374,7.7592,198.12,198.05,4.65964903]
[1755915048567,2.71,198.12,198.03,2.65]
[1755915048772,2.71,198.12,198.04,4.65964695]
[1755915048974,2.71,198.08,198.05,4.65964695]
[1755915049175,2.71,198.08,198.0,2.80686276]
[1755915049378,2.71,198.08,198.01,6.55968872]
[1755915049678,2.71,198.08,198.02,4.65948344]
[1755915049878,2.71,198.08,198.03,4.65948344]
[1755915050078,2.71,198.08,198.03,2.65]
[1755915050277,5.0499,198.09,198.03,2.65]
[1755915050573,2.71,198.08,198.04,4.6596936]
[1755915050776,5.0495,198.11,198.05,2.65]
[1755915051379,8.41373431,198.16,198.01,2.65]
[1755915051380,2.71,198.1,198.01,2.65]
[1755915051579,2.71,198.1,198.02,4.65984896]
[1755915051773,2.71,198.1,198.03,4.65984896]
[1755915051975,2.71,198.1,198.04,4.65984896]
[1755915052173,2.71,198.1,198.02,5.0515]
[1755915052374,2.71,198.1,198.03,4.66029705]
[1755915052574,2.71,198.1,198.04,4.66029705]
[1755915052778,2.71,198.1,198.02,5.0515]
[1755915053078,2.71,198.1,198.03,4.66029706]
[1755915053279,2.71,198.1,198.04,4.66029706]
[1755915053481,2.71,198.1,198.02,5.0515]
[1755915053683,2.71,198.1,198.03,7.31121859]
[1755915053880,2.71,198.1,198.04,4.66121859]
[1755915054079,2.71,198.1,198.03,2.65]
[1755915054283,2.71,198.1,198.04,4.66227181]
[1755915054483,2.71,198.1,198.03,2.65]
[1755915054679,2.71,198.1,198.04,4.69014256]
[1755915054980,2.71,198.1,198.03,2.65]
[1755915055180,2.71,198.1,198.04,4.69014256]
[1755915055380,2.71,198.1,198.05,7.34014256]
[1755915055682,2.71,198.1,198.03,5.0512]
[1755915055878,5.0495,198.11,198.07,2.65]
[1755915056079,5.0495,198.11,198.03,5.0512]
[1755915056280,28.04736276,198.17,197.98,25.2634]
[1755915056281,25.2457,198.12,198.04,4.69031016]
[1755915056484,25.2457,198.12,197.99,2.65]
[1755915056485,8.41373431,198.13,197.99,2.65]
[1755915056783,5.05,198.09,198.01,2.65]
[1755915056980,5.05,198.09,198.02,4.69204113]
[1755915057176,5.05,198.09,198.03,4.69204113]
[1755915057382,5.05,198.09,198.01,2.65]
[1755915057584,5.05,198.09,198.02,4.69203207]
[1755915057787,5.05,198.09,198.03,4.69203207]
[1755915057987,5.05,198.09,198.01,2.65]
[1755915058182,5.05,198.09,198.02,4.69214576]
[1755915058486,5.05,198.09,198.03,4.69214576]
[1755915058682,5.05,198.09,198.01,2.65]
[1755915058885,5.05,198.09,198.02,4.69232932]
[1755915059085,5.05,198.09,198.03,4.69232932]
[1755915059286,5.05,198.09,198.01,7.7017]
[1755915059486,5.05,198.09,198.02,4.69252126]
[1755915059786,5.05,198.09,198.03,4.69252126]
[1755915059983,5.05,198.09,198.01,7.7017]
[1755915060182,5.05,198.09,198.02,4.69252126]
[1755915060381,5.05,198.09,198.01,7.7017]
[1755915060581,8.41373431,198.1,198.02,4.6929555]
[1755915060888,151.9951,198.21,198.05,2.65]
[1755915060889,8.41373431,198.14,198.05,2.65]
[1755915061189,5.0489,198.13,198.06,4.6929555]
[1755915061388,5.0489,198.13,198.05,7.7008]
[1755915061591,5.0489,198.13,198.06,4.69061771]
[1755915061890,7.7593,198.12,198.05,2.65]
[1755915062294,7.7593,198.12,198.06,4.6901083]
[1755915062295,2.71,198.12,198.06,4.6901083]
[1755915062481,2.71,198.12,198.05,2.65]
[1755915062680,2.71,198.12,198.06,4.68920989]
[1755915062886,2.71,198.12,198.05,2.65]
[1755915063089,2.71,198.12,198.06,4.68894512]
[1755915063286,2.71,198.12,198.05,2.65]
[1755915063487,2.71,198.12,198.06,4.68805589]
[1755915063789,2.71,198.12,198.05,7.7007]
[1755915063991,2.71,198.12,198.05,2.65]
[1755915065190,7.7593,198.12,198.05,2.65]
[1755915065393,2.71,198.12,198.05,2.65]
[1755915065892,2.71,198.12,198.06,4.68734749]
[1755915066091,7.7592,198.12,198.05,2.65]
[1755915066393,7.7592,198.12,198.06,4.65404173]
[1755915066593,2.78,198.11,198.02,2.69]
[1755915066794,7.8304,198.07,198.03,4.65618478]
[1755915067088,2.78,198.06,197.98,128.93]
[1755915067287,2.78,198.06,197.99,11.24750108]
[1755915067488,2.78,198.06,198.0,9.34605529]
[1755915067686,2.78,198.06,198.01,9.34605529]
[1755915067883,2.78,198.05,198.02,4.65637225]
[1755915068083,2.78,198.05,198.03,4.65637225]
[1755915068289,2.78,198.05,197.98,128.93]
[1755915068488,2.78,198.05,197.99,11.24732862]
[1755915068691,2.78,198.05,198.0,9.34591339]
[1755915068890,2.78,198.05,198.01,9.34591339]
[1755915069090,2.78,198.05,198.0,2.69]
[1755915069291,2.78,198.05,198.01,9.34552605]
[1755915069594,2.78,198.05,198.02,4.65610927]
[1755915069794,2.78,198.05,198.01,2.69]
[1755915070092,2.78,198.05,198.02,9.3436311]
[1755915070289,2.78,198.05,198.03,4.65516983]
[1755915070489,2.78,198.05,197.99,5.0522]
[1755915070697,2.78,198.05,198.01,2.69]
[1755915070992,2.78,198.05,198.02,12.0336197]
[1755915071194,2.78,198.05,198.03,4.65516415]
[1755915071391,2.78,198.04,197.98,2.69]
[1755915071695,2.78,198.04,198.0,2.69]
[1755915071892,2.78,198.02,198.01,4.65535139]
[1755915072093,2.78,198.01,197.97,2.69]
[1755915072292,2.78,198.01,197.98,9.34802598]
[1755915072493,2.78,198.01,197.99,4.65738254]
[1755915072696,2.78,198.01,198.0,4.65738254]
[1755915072903,2.78,198.01,197.95,126.1]
[1755915072904,2.78,198.01,197.93,2.69]
[1755915073191,2.78,198.01,197.94,11.18131905]
[1755915073393,2.78,198.01,197.93,128.79]
[1755915073394,2.78,198.01,197.95,9.27901692]
[1755915073595,2.78,198.01,197.97,2.69]
[1755915073791,2.78,198.01,197.98,4.65800642]
[1755915073992,33.66523431,198.08,197.99,4.65800642]
[1755915074190,2.78,198.07,197.95,2.69]
[1755915074392,2.78,198.07,197.96,9.27799695]
[1755915074597,2.78,198.07,197.97,9.27799695]
[1755915074793,2.78,198.07,197.98,4.65774112]
[1755915074990,2.78,198.07,197.97,2.69]
[1755915074991,2.78,198.07,197.99,7.34774112]
[1755915075186,2.78,198.07,198.0,4.65774112]
[1755915075390,2.78,198.07,197.99,2.69]
[1755915075391,2.78,198.07,198.01,4.65774112]
[1755915075591,2.78,198.07,198.03,2.69]
[1755915076391,5.0499,198.09,198.01,2.69]
[1755915076598,5.0499,198.09,198.02,4.65295102]
[1755915076797,5.0499,198.09,198.03,4.65295102]
[1755915076997,2.78,198.11,198.01,2.69]
[1755915076998,7.8302,198.08,198.01,2.69]
[1755915077196,2.78,198.07,198.02,4.65251178]
[1755915077393,2.78,198.07,197.94,128.79]
[1755915077588,2.78,198.07,197.96,2.69]
[1755915077589,5.0513,198.04,197.96,2.69]
[1755915077793,2.78,198.07,197.97,9.27210542]
[1755915077999,2.78,198.07,197.96,2.69]
[1755915078000,2.78,198.07,197.98,4.65574434]
[1755915078303,2.78,198.07,198.0,2.69]
[1755915078493,2.78,198.07,198.01,4.6517174]
[1755915078801,2.78,198.07,198.0,2.69]
[1755915078989,2.78,198.07,198.01,4.65151479]
[1755915079192,2.78,198.07,198.0,2.69]
[1755915079388,2.78,198.07,198.01,4.6515861]
[1755915079389,7.8305,198.07,198.01,4.6515861]
[1755915079595,7.8305,198.07,198.0,2.69]
[1755915079793,7.8305,198.07,198.01,4.6515861]
[1755915079992,2.78,198.06,198.02,4.65126116]
[1755915080198,2.78,198.06,198.0,2.69]
[1755915080398,2.78,198.06,198.01,7.34098586]
[1755915080598,2.78,198.06,198.02,4.65098586]
[1755915080796,2.78,198.06,198.01,2.69]
[1755915080997,2.78,198.06,198.02,4.65108026]
[1755915081298,2.78,198.06,197.98,2.69]
[1755915081601,2.78,198.06,197.99,9.26465415]
[1755915081794,2.78,198.06,198.0,4.65102568]
[1755915081998,2.78,198.06,197.98,2.69]
[1755915082199,2.78,198.06,197.99,9.26662759]
[1755915082392,2.78,198.06,198.0,4.65201958]
[1755915082594,2.78,198.07,198.01,4.65458349]
[1755915082899,2.78,198.05,198.02,4.65458349]
[1755915083194,2.78,198.05,197.98,7.7425]
[1755915083402,2.78,198.05,197.99,9.27394407]
[1755915083596,2.78,198.05,198.0,11.96394407]
[1755915083899,2.78,198.05,198.01,9.27394407]
[1755915084097,2.78,198.05,198.02,4.65569149]
[1755915084293,2.78,198.08,198.03,4.65569149]
[1755915084493,2.78,198.08,197.95,7.7432]
[1755915084494,2.78,198.07,197.95,2.69]
[1755915084798,2.78,198.02,197.96,6.55820829]
[1755915084992,2.78,198.01,197.97,4.65658554]
[1755915085188,2.78,198.01,197.93,126.12]
[1755915085189,2.78,198.0,197.98,4.65658554]
[1755915085391,2.78,198.0,197.99,4.65658554]
[1755915086599,2.78,198.0,197.97,0.03182272]
[1755915086900,2.78,197.99,197.98,4.66050873]
[1755915087702,25.2565,198.04,197.97,0.03182272]
[1755915087902,2.78,197.98,197.97,0.03182272]
[1755915088097,2.78,197.98,197.97,4.69451018]
[1755915091199,2.78,197.98,197.97,4.68704803]
[1755915091398,2.78,198.01,197.97,7.37581497]
[1755915091696,5.58686276,198.05,197.98,4.65399225]
[1755915091897,5.58686276,198.05,197.97,0.03182272]
[1755915092102,5.58686276,198.05,197.98,4.65297466]
[1755915092300,5.58686276,198.05,197.99,4.65173631]
[1755915092301,2.78,198.05,197.99,4.65173631]
[1755915092602,2.78,198.05,197.97,0.03182272]
[1755915092603,2.78,198.05,198.0,7.34173631]
[1755915092800,14.00059707,198.1,198.02,2.69]
[1755915093001,5.58686276,198.1,198.02,2.69]
[1755915093202,5.0502,198.08,198.02,2.69]
[1755915093601,5.58686276,198.1,198.02,2.69]
[1755915094594,5.0505,198.07,198.02,2.69]
[1755915094799,7.7205,198.07,198.02,2.69]
[1755915095605,5.05,198.09,198.01,2.91]
[1755915095794,5.05,198.09,198.02,4.65235488]
[1755915095999,5.05,198.09,198.01,2.91]
[1755915096199,5.05,198.09,198.02,4.65174367]
[1755915096407,5.05,198.09,198.01,7.9616]
[1755915096703,2.67,198.11,198.04,0.03211673]
[1755915097405,5.0499,198.09,198.04,2.94211673]
[1755915097604,7.7199,198.09,198.04,2.94211673]
[1755915097806,5.0502,198.08,198.04,2.94211673]
[1755915099503,5.0505,198.07,198.04,2.94211673]
[1755915099709,2.67,198.06,198.04,0.03211673]
[1755915099901,2.67,198.05,198.04,0.03211673]
[1755915100502,18.51293431,198.11,198.04,0.03211673]
[1755915100813,2.67,198.11,198.04,0.03211673]
[1755915101610,5.0502,198.08,198.04,2.94211673]
[1755915101806,2.67,198.11,198.04,2.94211673]
[1755915102211,2.67,198.05,198.04,0.03211673]
[1755915103508,35.344,198.12,198.04,2.94211673]
[1755915103509,5.0502,198.08,198.04,2.94211673]
[1755915104207,8.41373431,198.12,198.04,0.03211673]
[1755915104208,2.67,198.05,198.04,0.03211673]
[1755915105607,5.0507,198.06,198.04,0.03211673]
[1755915105798,0.03188846,198.08,198.05,2.91]
[1755915106198,0.03188846,198.08,198.04,0.03211673]
[1755915106400,2.67,198.07,198.04,0.03211673]
[1755915107605,7.7204,198.07,198.04,0.03211673]
[1755915108810,2.67,198.05,198.04,0.03211673]
[1755915110112,13.49582277,198.08,198.04,0.03211673]
[1755915110506,13.49582277,198.08,198.04,2.94211673]
[1755915110910,13.49582277,198.08,198.04,0.03211673]
[1755915111111,2.67,198.07,198.04,0.03211673]
[1755915112417,11.08373431,198.07,198.04,0.03211673]
[1755915113217,16.13413431,198.07,198.04,0.03211673]
[1755915113615,2.67,198.07,198.04,0.03211673]
[1755915114209,11.11562277,198.08,198.04,2.94211673]
[1755915114409,0.03188846,198.08,198.06,2.91]
[1755915114714,2.67,198.07,198.04,0.03211673]
[1755915115220,2.67,198.06,198.04,0.03211673]
[1755915115611,16.16582277,198.08,198.04,0.03211673]
[1755915115814,2.67,198.07,198.04,0.03211673]
[1755915116418,8.44562277,198.08,198.05,2.91]
[1755915116419,0.03188846,198.08,198.05,2.91]
[1755915117115,0.03188846,198.08,198.04,0.03211673]
[1755915117315,0.03188846,198.08,198.06,2.91]
[1755915118020,0.03188846,198.08,198.04,0.03211673]
[1755915118221,0.03188846,198.08,198.04,2.94211673]
[1755915118422,2.70188846,198.08,198.04,2.94211673]
[1755915118621,0.03188846,198.08,198.05,2.91]
[1755915119921,0.03188846,198.08,198.07,2.91]
[1755915120220,0.03188846,198.08,198.07,7.57016238]
[1755915120426,8.41373431,198.18,198.08,2.91]
[1755915120723,2.67,198.18,198.1,2.91]
[1755915120923,2.67,198.18,198.11,4.66016238]
[1755915121120,5.47686276,198.18,198.05,2.91]
[1755915121321,25.2397,198.17,198.06,4.66310315]
[1755915121522,2.67,198.16,198.07,4.66310315]
[1755915121718,2.67,198.16,198.05,2.91]
[1755915121719,2.67,198.16,198.1,0.03721192]
[1755915121929,7.7184,198.15,198.1,2.94721192]
[1755915122421,5.0487,198.14,198.1,2.94721192]
[1755915122616,2.80686276,198.18,198.1,0.03721192]
[1755915122617,2.67,198.17,198.1,0.03721192]
[1755915123023,2.80686276,198.18,198.1,0.03721192]
[1755915123024,2.67,198.15,198.1,0.03721192]
[1755915123221,2.93,198.14,198.1,0.03721192]
[1755915123428,2.93,198.17,198.1,0.03721192]
[1755915123825,28.1692,198.17,198.1,0.03721192]
[1755915124238,5.0493,198.12,198.1,0.03721192]
[1755915124419,2.93,198.11,198.1,0.03721192]
[1755915126924,25.241,198.16,198.1,0.03721192]
[1755915126925,5.0486,198.14,198.1,0.03721192]
[1755915127125,2.80686276,198.17,198.1,0.03721192]
[1755915127331,2.93,198.16,198.1,0.03721192]
[1755915127530,2.93,198.11,198.1,0.03721192]
[1755915132938,2.93,198.13,198.1,0.03721192]
[1755915133137,2.93,198.12,198.1,0.03721192]
[1755915133338,2.93,198.16,198.1,0.03721192]
[1755915133738,2.93,198.11,198.1,0.03721192]
[1755915135737,5.0492,198.12,198.1,0.03721192]
[1755915135942,7.9792,198.12,198.1,0.03721192]
[1755915136540,5.0492,198.12,198.1,0.03721192]
[1755915136942,5.0492,198.12,198.1,2.87721192]
[1755915137247,2.93,198.16,198.11,2.84]
[1755915137439,2.93,198.15,198.1,0.03721192]
[1755915137640,5.0493,198.11,198.1,0.03721192]
[1755915137943,7.9793,198.11,198.1,0.03721192]
[1755915140342,5.0493,198.11,198.1,0.03721192]
[1755915140646,7.9793,198.11,198.1,0.03721192]
[1755915141042,5.0509,198.05,198.02,2.84]
[1755915141242,5.0509,198.05,198.03,4.73829861]
[1755915141442,5.0509,198.05,198.04,4.73829861]
[1755915142744,2.93,198.11,198.04,4.73829861]
[1755915142944,2.93,198.11,198.05,7.57829861]
[1755915143144,2.93,198.11,198.06,4.73829861]
[1755915143345,2.93,198.11,198.07,4.73829861]
[1755915143546,2.93,198.11,198.04,2.84]
[1755915143745,2.93,198.11,198.05,4.73771316]
[1755915143942,2.93,198.11,198.04,2.84]
[1755915143943,5.0502,198.08,198.06,4.73771316]
[1755915144143,5.0502,198.08,197.98,2.84]
[1755915144342,5.0502,198.08,198.0,2.84]
[1755915144545,5.0502,198.08,198.02,2.84]
[1755915144746,5.0502,198.08,198.04,2.84]
[1755915144945,5.0502,198.08,198.05,7.57809431]
[1755915145149,5.0502,198.08,198.05,2.84]
[1755915145448,5.0502,198.08,198.06,7.57889987]
[1755915145649,28.05196276,198.13,198.07,4.73889987]
[1755915145650,5.0497,198.1,198.07,4.73889987]
[1755915145945,2.80686276,198.13,198.07,2.84]
[1755915146147,2.93,198.14,198.07,2.84]
[1755915146349,5.0497,198.1,198.07,2.84]
[1755915147646,5.0499,198.09,198.03,7.8912]
[1755915147945,5.0499,198.09,198.06,2.84]
[1755915148145,5.0499,198.09,198.07,7.57891671]
[1755915148444,5.0499,198.09,198.08,4.73826034]
[1755915149045,5.0495,198.11,198.08,4.73826034]
[1755915149348,5.0495,198.11,198.09,4.73878131]
[1755915149550,5.0495,198.11,198.05,2.84]
[1755915149751,5.0495,198.11,198.07,2.84]
[1755915149954,5.0489,198.13,198.09,2.84]
[1755915150254,2.93,198.17,198.11,2.84]
[1755915150453,5.0484,198.15,198.11,2.84]
[1755915150654,5.0484,198.15,198.12,2.84]
[1755915150951,5.0487,198.14,198.08,2.84]
[1755915151153,2.93,198.16,198.05,2.84]
[1755915151347,25.2419,198.15,198.06,4.73780504]
[1755915151547,25.2419,198.15,198.07,4.73780504]
[1755915151853,25.2419,198.15,198.08,4.73780504]
[1755915152153,25.2419,198.15,198.05,2.84]
[1755915152353,5.0497,198.1,198.06,7.64883225]
[1755915152554,5.0497,198.1,198.07,4.80883225]
[1755915152750,5.0497,198.1,198.08,4.80883225]
[1755915152947,5.0497,198.1,198.02,5.0514]
[1755915153147,5.0497,198.1,198.06,2.84]
[1755915153348,5.0497,198.1,198.07,4.80936081]
[1755915153553,5.0497,198.1,198.08,4.80936081]
[1755915153850,5.05,198.09,198.06,2.84]
[1755915154051,5.05,198.09,198.07,4.81004642]
[1755915154249,25.2444,198.13,197.99,131.0522]
[1755915154443,2.89,198.12,198.0,14.09773217]
[1755915154647,0.03820433,198.1,198.06,0.03807505]
[1755915154847,0.03820433,198.1,198.07,4.81055875]
[1755915155044,0.03820433,198.1,198.06,2.77807505]
[1755915155249,0.03820433,198.1,198.07,4.81055875]
[1755915155450,0.03820433,198.1,198.06,0.03807505]
[1755915155451,2.92820433,198.1,198.06,0.03807505]
[1755915156048,2.89,198.09,198.06,0.03807505]
[1755915156550,5.0503,198.08,198.06,0.03807505]
[1755915156854,7.9403,198.08,198.06,0.03807505]
[1755915157250,2.89,198.07,198.06,0.03807505]
[1755915159158,2.89,198.07,198.06,7.505e-05]
[1755915160953,2.89,198.07,198.06,4.76326747]
[1755915161149,2.89,198.07,198.06,7.505e-05]
[1755915162064,7.9403,198.08,198.06,7.505e-05]
[1755915162966,5.0503,198.08,198.06,7.505e-05]
[1755915163167,5.0503,198.08,198.07,4.76393499]
[1755915163464,7.9403,198.08,198.07,4.76372851]
[1755915163765,7.9403,198.08,198.06,7.505e-05]
[1755915167567,7.9403,198.08,198.07,4.76330624]
[1755915169968,7.9403,198.08,198.06,7.505e-05]
[1755915170468,5.0503,198.08,198.06,7.505e-05]
[1755915170670,0.03820433,198.1,198.07,7.50240736]
[1755915170875,2.92820433,198.1,198.08,4.76240736]
[1755915171169,2.92820433,198.1,198.07,2.74]
[1755915171371,7.94,198.09,198.08,4.76147789]
[1755915171573,2.89,198.09,198.06,7.505e-05]
[1755915172565,5.0503,198.07,198.06,7.505e-05]
[1755915173671,7.9403,198.07,198.06,7.505e-05]
[1755915175465,5.0503,198.07,198.06,7.505e-05]
[1755915176165,7.9403,198.07,198.06,7.505e-05]
[1755915178364,5.0503,198.07,198.06,7.505e-05]
[1755915180663,7.9403,198.07,198.06,7.505e-05]
[1755915181779,7.9403,198.07,198.06,4.7637204]
[1755915182075,7.9403,198.07,198.06,7.505e-05]
[1755915182480,5.0503,198.07,198.06,7.505e-05]
[1755915183275,5.0524,197.99,197.93,4.17858036]
[1755915183474,2.80686276,198.03,197.94,11.34934782]
[1755915183782,5.0521,198.0,197.95,11.34934782]
[1755915183980,7.9821,198.0,197.96,11.34934782]
[1755915184178,7.9821,198.0,197.97,9.46377606]
[1755915184478,7.9821,198.0,197.98,9.46377606]
[1755915184479,2.93,197.99,197.98,9.46377606]
[1755915185778,5.08843196,198.0,197.98,9.46377606]